fUST/lending_fUST_20250626
["ID","MTS","AMOUNT","RATE_DAILY","PERIOD"]
[367621755,1750879839163,-500.0,0.00016463,2]
[367621756,1750879839172,-500.0,0.00016465,2]
[367621757,1750879839182,-151.0,0.00016465,2]
[367621758,1750879839191,-151.0,0.00016465,2]
[367621759,1750879839200,-151.0,0.00016465,2]
[367621760,1750879839209,-151.0,0.00016465,2]
[367621761,1750879839217,-151.0,0.00016465,2]
[367621762,1750879839227,-500.0,0.00016491,2]
[367621763,1750879839235,-198.0,0.00016491,2]
[367621764,1750879839244,-500.0,0.00016491,2]
[367621765,1750879839254,-500.0,0.00016493,2]
[367621766,1750879839262,-151.0,0.00016493,2]
[367621767,1750879839271,-151.0,0.00016493,2]
[367621768,1750879839280,-151.0,0.00016493,2]
[367621770,1750879839289,-151.0,0.00016493,2]
[367621771,1750879839298,-151.0,0.00016493,2]
[367621772,1750879839308,-500.0,0.00016518,2]
[367621774,1750879839320,-500.0,0.00016518,2]
[367621776,1750879839333,-500.0,0.0001652,2]
[367621778,1750879839342,-263.19621546,0.0001652,2]
[367621780,1750879839351,-151.0,0.0001652,2]
[367621782,1750879839360,-151.0,0.0001652,2]
[367621784,1750879839369,-151.0,0.0001652,2]
[367621786,1750879839379,-151.0,0.0001652,2]
[367621788,1750879839388,-483.5172376,0.00016546,2]
[367621791,1750879839398,-505.4615259,0.00016546,2]
[367621793,1750879839407,-500.0,0.00016548,2]
[367621794,1750879839416,-151.0,0.00016548,2]
[367621797,1750879839425,-151.0,0.00016548,2]
[367621798,1750879839434,-151.0,0.00016548,2]
[367621801,1750879839444,-151.0,0.00016548,2]
[367621803,1750879839454,-500.0,0.00016575,2]
[367621805,1750879839463,-245.0,0.00016575,2]
[367621807,1750879839472,-245.0,0.00016575,2]
[367621809,1750879839481,-245.0,0.00016575,2]
[367621811,1750879839490,-245.0,0.00016575,2]
[367621813,1750879839499,-500.0,0.00016602,2]
[367621815,1750879839508,-500.0,0.0001663,2]
[367621817,1750879839517,-610.0,0.00016657,2]
[367621818,1750879839526,-319.69,0.00016702,3]
[367621820,1750879839535,-159.84,0.00016702,3]
[367621822,1750879839544,-479.55,0.00016702,3]
[367621824,1750879839553,-628.60421314,0.00016707,2]
[367621826,1750879839562,-480.86,0.00016712,2]
[367621828,1750879839572,-460.0,0.00016712,2]
[367621830,1750879839581,-389.45927333,0.00016712,2]
[367621832,1750879839591,-460.0,0.00016712,2]
[367621834,1750879839600,-460.0,0.00016712,2]
[367621836,1750879839611,-558.41944309,0.00016712,2]
[367621838,1750879839620,-460.0,0.00016712,2]
[367621840,1750879839634,-460.0,0.00016712,2]
[367621842,1750879839644,-460.0,0.00016712,2]
[367621844,1750879839653,-243.9,0.00016712,2]
[367621846,1750879839662,-460.0,0.00016712,2]
[367621848,1750879839671,-235.22,0.00016712,2]
[367621850,1750879839681,-460.0,0.00016712,2]
[367621852,1750879839690,-271.61,0.00016712,2]
[367621854,1750879839700,-460.0,0.00016712,2]
[367621856,1750879839710,-460.0,0.00016712,2]
[367621858,1750879839719,-460.0,0.00016712,2]
[367621860,1750879839728,-460.0,0.00016712,2]
[367621862,1750879839738,-460.0,0.00016712,2]
[367621864,1750879839747,-570.09,0.00016712,2]
[367621866,1750879839755,-460.0,0.00016712,2]
[367621868,1750879839764,-460.0,0.00016712,2]
[367621870,1750879839773,-844.63,0.00016712,2]
[367621872,1750879839782,-460.0,0.00016712,2]
[367621874,1750879839791,-460.0,0.00016712,2]
[367621876,1750879839800,-460.0,0.00016712,2]
[367621878,1750879839809,-460.0,0.00016712,2]
[367621880,1750879839818,-460.0,0.00016712,2]
[367621881,1750879839827,-460.0,0.00016712,2]
[367621883,1750879839836,-460.0,0.00016712,2]
[367621885,1750879839845,-460.0,0.00016712,2]
[367621887,1750879839854,-1854.08,0.00016712,2]
[367621889,1750879839863,-3439.32,0.00016712,2]
[367621891,1750879839873,-460.0,0.00016712,2]
[367621894,1750879839882,-497.905898,0.00016712,2]
[367621895,1750879839891,-460.0,0.00016712,2]
[367621897,1750879839901,-1368.35,0.00016712,2]
[367621899,1750879839910,-485.01,0.00016712,2]
[367621901,1750879839919,-315.64,0.00016712,2]
[367621903,1750879839928,-460.0,0.00016712,2]
[367621905,1750879839937,-1889.98,0.00016712,2]
[367621907,1750879839946,-460.0,0.00016712,2]
[367621909,1750879839955,-460.0,0.00016712,2]
[367621911,1750879839964,-460.0,0.00016712,2]
[367621913,1750879839973,-764.44,0.00016712,2]
[367621915,1750879839983,-460.0,0.00016712,2]
[367621918,1750879839994,-460.0,0.00016712,2]
[367621920,1750879840004,-460.0,0.00016712,2]
[367621922,1750879840013,-460.0,0.00016712,2]
[367621924,1750879840022,-460.0,0.00016712,2]
[367621925,1750879840031,-460.0,0.00016712,2]
[367621927,1750879840040,-817.46,0.00016712,2]
[367621929,1750879840050,-460.0,0.00016712,2]
[367621931,1750879840059,-526.06,0.00016712,2]
[367621933,1750879840068,-460.0,0.00016712,2]
[367621935,1750879840078,-460.0,0.00016712,2]
[367621937,1750879840086,-1687.21,0.00016712,2]
[367621939,1750879840095,-460.0,0.00016712,2]
[367621941,1750879840104,-3328.99,0.00016712,2]
[367621943,1750879840113,-521.37,0.00016712,2]
[367621945,1750879840122,-1003.52,0.00016712,2]
[367621947,1750879840133,-460.0,0.00016712,2]
[367621949,1750879840142,-460.0,0.00016712,2]
[367621952,1750879840153,-460.0,0.00016712,2]
[367621954,1750879840163,-2727.71,0.00016712,2]
[367621956,1750879840172,-460.0,0.00016712,2]
[367621958,1750879840181,-460.0,0.00016712,2]
[367621960,1750879840191,-1525.66,0.00016712,2]
[367621962,1750879840200,-460.0,0.00016712,2]
[367621964,1750879840210,-501.38,0.00016712,2]
[367621966,1750879840218,-460.0,0.00016712,2]
[367621968,1750879840228,-460.0,0.00016712,2]
[367621969,1750879840237,-1919.22,0.00016712,2]
[367621971,1750879840247,-460.0,0.00016712,2]
[367621973,1750879840256,-460.0,0.00016712,2]
[367621976,1750879840265,-460.0,0.00016712,2]
[367621978,1750879840275,-460.0,0.00016712,2]
[367621980,1750879840284,-460.0,0.00016712,2]
[367621982,1750879840294,-460.0,0.00016712,2]
[367621983,1750879840303,-460.0,0.00016712,2]
[367621986,1750879840312,-845.12,0.00016712,2]
[367621988,1750879840321,-460.0,0.00016712,2]
[367621990,1750879840331,-690.86,0.00016712,2]
[367621992,1750879840340,-460.2,0.00016712,2]
[367621994,1750879840349,-460.0,0.00016712,2]
[367621996,1750879840358,-1157.75,0.00016712,2]
[367621998,1750879840368,-460.0,0.00016712,2]
[367621999,1750879840377,-460.0,0.00016712,2]
[367622001,1750879840387,-460.0,0.00016712,2]
[367622003,1750879840396,-1833.02,0.00016712,2]
[367622005,1750879840406,-440.0,0.00016712,2]
[367622007,1750879840415,-560.09,0.00016712,2]
[367622009,1750879840424,-460.0,0.00016712,2]
[367622011,1750879840433,-460.0,0.00016712,2]
[367622013,1750879840442,-460.0,0.00016712,2]
[367622015,1750879840451,-1998.0,0.00016712,2]
[367622017,1750879840460,-460.0,0.00016712,2]
[367622019,1750879840469,-460.0,0.00016712,2]
[367622021,1750879840478,-671.46,0.00016712,2]
[367622023,1750879840488,-335.64137438,0.00016712,2]
[367622025,1750879840497,-460.0,0.00016712,2]
[367622027,1750879840506,-591.36,0.00016712,2]
[367622029,1750879840515,-1490.15,0.00016712,2]
[367622031,1750879840524,-460.0,0.00016712,2]
[367622033,1750879840533,-907.24,0.00016712,2]
[367622035,1750879840542,-460.0,0.00016712,2]
[367622037,1750879840551,-460.0,0.00016712,2]
[367622039,1750879840560,-460.0,0.00016712,2]
[367622041,1750879840569,-460.0,0.00016712,2]
[367622043,1750879840579,-1029.88,0.00016712,2]
[367622045,1750879840588,-460.0,0.00016712,2]
[367622047,1750879840597,-460.0,0.00016712,2]
[367622049,1750879840607,-460.0,0.00016712,2]
[367622051,1750879840616,-460.0,0.00016712,2]
[367622053,1750879840625,-2005.87,0.00016712,2]
[367622055,1750879840636,-460.0,0.00016712,2]
[367622057,1750879840646,-460.0,0.00016712,2]
[367622059,1750879840655,-460.0,0.00016712,2]
[367622061,1750879840664,-460.0,0.00016712,2]
[367622063,1750879840675,-460.0,0.00016712,2]
[367622065,1750879840684,-399.67921954,0.00016712,2]
[367622067,1750879840694,-553.05872448,0.00016712,2]
[367622069,1750879840703,-460.0,0.00016712,2]
[367622071,1750879840714,-460.0,0.00016712,2]
[367622073,1750879840723,-460.0,0.00016712,2]
[367622075,1750879840732,-460.0,0.00016712,2]
[367622077,1750879840741,-460.0,0.00016712,2]
[367622079,1750879840750,-3782.04504379,0.00016886,2]
[367622081,1750879840759,-3218.82112125,0.000169,2]
[367622083,1750879840768,-460.0,0.00016986,2]
[367622085,1750879840777,-460.0,0.00016986,2]
[367622087,1750879840786,-460.0,0.00016986,2]
[367622089,1750879840796,-460.0,0.00016986,2]
[367622091,1750879840806,-460.0,0.00016986,2]
[367622094,1750879840815,-460.0,0.00016986,2]
[367622095,1750879840824,-230.13,0.00016986,2]
[367622097,1750879840833,-460.0,0.00016986,2]
[367622099,1750879840842,-460.0,0.00016986,2]
[367622101,1750879840852,-460.0,0.00016986,2]
[367622103,1750879840861,-460.0,0.00016986,2]
[367622105,1750879840870,-460.0,0.00016986,2]
[367622107,1750879840880,-570.09,0.00016986,2]
[367622109,1750879840889,-460.0,0.00016986,2]
[367622111,1750879840898,-460.0,0.00016986,2]
[367622113,1750879840907,-844.63,0.00016986,2]
[367622115,1750879840916,-460.0,0.00016986,2]
[367622117,1750879840926,-453.56428964,0.00016986,2]
[367622119,1750879840935,-460.0,0.00016986,2]
[367622121,1750879840944,-460.0,0.00016986,2]
[367622124,1750879840954,-460.0,0.00016986,2]
[367622126,1750879840963,-339.25,0.00016986,2]
[367622128,1750879840973,-1854.08,0.00016986,2]
[367622130,1750879840984,-3439.32,0.00016986,2]
[367622132,1750879840994,-460.0,0.00016986,2]
[367622134,1750879841003,-460.0,0.00016986,2]
[367622136,1750879841012,-1368.35,0.00016986,2]
[367622138,1750879841022,-485.01,0.00016986,2]
[367622140,1750879841032,-447.92,0.00016986,2]
[367622142,1750879841041,-1889.98,0.00016986,2]
[367622144,1750879841051,-460.0,0.00016986,2]
[367622146,1750879841060,-460.0,0.00016986,2]
[367622148,1750879841070,-460.0,0.00016986,2]
[367622150,1750879841079,-764.44,0.00016986,2]
[367622152,1750879841088,-460.0,0.00016986,2]
[367622154,1750879841098,-460.0,0.00016986,2]
[367622156,1750879841107,-460.0,0.00016986,2]
[367622158,1750879841116,-213.10496377,0.00016986,2]
[367622160,1750879841126,-817.46,0.00016986,2]
[367622162,1750879841135,-539.60067752,0.00016986,2]
[367622164,1750879841145,-460.0,0.00016986,2]
[367622166,1750879841154,-1687.21,0.00016986,2]
[367622168,1750879841164,-3328.99,0.00016986,2]
[367622170,1750879841173,-521.37,0.00016986,2]
[367622172,1750879841183,-1003.52,0.00016986,2]
[367622174,1750879841192,-460.0,0.00016986,2]
[367622176,1750879841201,-460.0,0.00016986,2]
[367622178,1750879841211,-2727.71,0.00016986,2]
[367622181,1750879841221,-460.0,0.00016986,2]
[367622183,1750879841230,-460.0,0.00016986,2]
[367622185,1750879841239,-1525.66,0.00016986,2]
[367622187,1750879841248,-501.38,0.00016986,2]
[367622189,1750879841258,-460.0,0.00016986,2]
[367622191,1750879841268,-1919.22,0.00016986,2]
[367622193,1750879841277,-460.0,0.00016986,2]
[367622195,1750879841286,-460.0,0.00016986,2]
[367622197,1750879841295,-460.0,0.00016986,2]
[367622199,1750879841305,-460.0,0.00016986,2]
[367622201,1750879841314,-460.0,0.00016986,2]
[367622203,1750879841323,-845.12,0.00016986,2]
[367622205,1750879841332,-690.86,0.00016986,2]
[367622207,1750879841342,-460.2,0.00016986,2]
[367622209,1750879841351,-460.0,0.00016986,2]
[367622211,1750879841360,-1157.75,0.00016986,2]
[367622213,1750879841369,-460.0,0.00016986,2]
[367622215,1750879841378,-515.56,0.00016986,2]
[367622217,1750879841388,-1833.02,0.00016986,2]
[367622219,1750879841397,-560.09,0.00016986,2]
[367622221,1750879841407,-385.35951458,0.00016986,2]
[367622223,1750879841416,-460.0,0.00016986,2]
[367622225,1750879841425,-1998.0,0.00016986,2]
[367622227,1750879841435,-460.0,0.00016986,2]
[367622229,1750879841444,-671.46,0.00016986,2]
[367622231,1750879841454,-460.0,0.00016986,2]
[367622233,1750879841463,-591.36,0.00016986,2]
[367622235,1750879841472,-1490.15,0.00016986,2]
[367622237,1750879841481,-460.0,0.00016986,2]
[367622239,1750879841491,-907.24,0.00016986,2]
[367622241,1750879841500,-460.0,0.00016986,2]
[367622243,1750879841510,-605.11965153,0.00016986,2]
[367622245,1750879841519,-564.20924757,0.00016986,2]
[367622247,1750879841529,-460.0,0.00016986,2]
[367622249,1750879841538,-1029.88,0.00016986,2]
[367622251,1750879841548,-460.0,0.00016986,2]
[367622253,1750879841557,-460.0,0.00016986,2]
[367622255,1750879841567,-460.0,0.00016986,2]
[367622257,1750879841576,-460.0,0.00016986,2]
[367622259,1750879841585,-2005.87,0.00016986,2]
[367622261,1750879841595,-460.0,0.00016986,2]
[367622263,1750879841605,-460.0,0.00016986,2]
[367622265,1750879841614,-460.0,0.00016986,2]
[367622267,1750879841624,-160.0,0.00017052,2]
[367622269,1750879841636,-160.0,0.00017052,2]
[367622271,1750879841645,-524.21181985,0.00017052,2]
[367622273,1750879841654,-230.22714675,0.00017052,2]
[367622275,1750879841664,-160.0,0.00017052,2]
[367622277,1750879841675,-836.86812089,0.00017052,2]
[367622279,1750879841684,-12558.06783089,0.00017052,2]
[367622281,1750879841693,-160.0,0.00017052,2]
[367622283,1750879841703,-213.69531788,0.00017052,2]
[367622285,1750879841713,-846.80634355,0.00017052,2]
[367622287,1750879841722,-425.18553072,0.00017052,2]
[367622289,1750879841731,-160.0,0.00017052,2]
[367622291,1750879841741,-160.0,0.00017052,2]
[367622293,1750879841750,-160.0,0.00017052,2]
[367622294,1750879841760,-500.0,0.00017057,2]
[367622295,1750879841769,-502.55035468,0.00017057,2]
[367622296,1750879841778,-500.0,0.00017057,2]
[367622297,1750879841787,-500.0,0.0001708,2]
[367622298,1750879841797,-502.89171688,0.0001708,2]
[367622299,1750879841806,-500.0,0.0001708,2]
[367622300,1750879841816,-500.0,0.0001708,2]
[367622301,1750879841825,-500.0,0.00017087,2]
[367622302,1750879841834,-500.0,0.00017087,2]
[367622303,1750879841843,-500.40216454,0.00017087,2]
[367622304,1750879841852,-500.0,0.00017087,2]
[367622305,1750879841861,-500.0,0.00017087,2]
[367622306,1750879841870,-500.0,0.00017104,2]
[367622307,1750879841880,-412.78763217,0.00017104,2]
[367622308,1750879841889,-500.0,0.00017104,2]
[367622309,1750879841898,-500.0,0.00017104,2]
[367622311,1750879841908,-500.0,0.00017104,2]
[367622313,1750879841918,-500.0,0.00017104,2]
[367622315,1750879841928,-500.0,0.00017104,2]
[367622317,1750879841937,-500.0,0.00017104,2]
[367622319,1750879841947,-512.51280788,0.00017104,2]
[367622321,1750879841957,-500.0,0.00017104,2]
[367622323,1750879841966,-500.0,0.00017104,2]
[367622325,1750879841976,-500.0,0.00017104,2]
[367622327,1750879841986,-274.63795306,0.00017104,2]
[367622329,1750879841995,-500.0,0.00017104,2]
[367622331,1750879842006,-500.0,0.00017104,2]
[367622333,1750879842015,-500.0,0.00017107,2]
[367622335,1750879842025,-502.40315064,0.00017107,2]
[367622337,1750879842035,-500.0,0.00017107,2]
[367622340,1750879842044,-500.0,0.00017124,2]
[367622342,1750879842054,-500.0,0.0001715,2]
[367622344,1750879842063,-3218.82112114,0.00017176,2]
[367622346,1750879842073,-500.0,0.00017187,2]
[367622348,1750879842082,-500.0,0.00017187,2]
[367622350,1750879842091,-500.0,0.00017187,2]
[367622352,1750879842100,-500.0,0.00017187,2]
[367622353,1750879842110,-1179.36597773,0.00017254,2]
[367622355,1750879842119,-460.0,0.0001726,2]
[367622357,1750879842129,-460.0,0.0001726,2]
[367622359,1750879842139,-460.0,0.0001726,2]
[367622361,1750879842148,-460.0,0.0001726,2]
[367622363,1750879842158,-460.0,0.0001726,2]
[367622366,1750879842168,-460.0,0.0001726,2]
[367622368,1750879842177,-460.0,0.0001726,2]
[367622370,1750879842187,-246.61,0.0001726,2]
[367622372,1750879842196,-460.0,0.0001726,2]
[367622374,1750879842205,-460.0,0.0001726,2]
[367622376,1750879842215,-460.0,0.0001726,2]
[367622378,1750879842224,-570.09,0.0001726,2]
[367622380,1750879842233,-460.0,0.0001726,2]
[367622382,1750879842242,-566.11,0.0001726,2]
[367622384,1750879842251,-844.63,0.0001726,2]
[367622386,1750879842260,-233.92,0.0001726,2]
[367622388,1750879842270,-460.0,0.0001726,2]
[367622390,1750879842279,-460.0,0.0001726,2]
[367622392,1750879842288,-460.0,0.0001726,2]
[367622394,1750879842298,-151.0,0.0001726,2]
[367622396,1750879842307,-1854.08,0.0001726,2]
[367622398,1750879842317,-3439.32,0.0001726,2]
[367622400,1750879842326,-460.0,0.0001726,2]
[367622402,1750879842335,-460.0,0.0001726,2]
[367622404,1750879842345,-1368.35,0.0001726,2]
[367622406,1750879842354,-485.01,0.0001726,2]
[367622408,1750879842363,-1889.98,0.0001726,2]
[367622410,1750879842372,-460.0,0.0001726,2]
[367622412,1750879842382,-460.0,0.0001726,2]
[367622414,1750879842391,-460.0,0.0001726,2]
[367622416,1750879842401,-764.44,0.0001726,2]
[367622418,1750879842410,-460.0,0.0001726,2]
[367622420,1750879842420,-460.0,0.0001726,2]
[367622422,1750879842430,-460.0,0.0001726,2]
[367622424,1750879842441,-817.46,0.0001726,2]
[367622426,1750879842450,-460.0,0.0001726,2]
[367622428,1750879842460,-1687.21,0.0001726,2]
[367622430,1750879842470,-3328.99,0.0001726,2]
[367622432,1750879842479,-521.37,0.0001726,2]
[367622434,1750879842490,-1003.52,0.0001726,2]
[367622436,1750879842500,-460.0,0.0001726,2]
[367622438,1750879842510,-2727.71,0.0001726,2]
[367622440,1750879842520,-460.0,0.0001726,2]
[367622442,1750879842529,-460.0,0.0001726,2]
[367622444,1750879842538,-1525.66,0.0001726,2]
[367622446,1750879842548,-501.38,0.0001726,2]
[367622448,1750879842560,-1919.22,0.0001726,2]
[367622450,1750879842570,-460.0,0.0001726,2]
[367622452,1750879842580,-460.0,0.0001726,2]
[367622454,1750879842590,-460.0,0.0001726,2]
[367622458,1750879842600,-460.0,0.0001726,2]
[367622460,1750879842609,-460.0,0.0001726,2]
[367622462,1750879842619,-845.12,0.0001726,2]
[367622464,1750879842633,-690.86,0.0001726,2]
[367622466,1750879842642,-460.2,0.0001726,2]
[367622468,1750879842652,-460.0,0.0001726,2]
[367622470,1750879842662,-1157.75,0.0001726,2]
[367622472,1750879842675,-460.0,0.0001726,2]
[367622474,1750879842684,-1833.02,0.0001726,2]
[367622476,1750879842694,-560.09,0.0001726,2]
[367622478,1750879842704,-460.0,0.0001726,2]
[367622480,1750879842715,-1998.0,0.0001726,2]
[367622482,1750879842725,-460.0,0.0001726,2]
[367622484,1750879842735,-671.46,0.0001726,2]
[367622486,1750879842744,-460.0,0.0001726,2]
[367622488,1750879842755,-591.36,0.0001726,2]
[367622491,1750879842765,-1490.15,0.0001726,2]
[367622494,1750879842775,-460.0,0.0001726,2]
[367622497,1750879842784,-907.24,0.0001726,2]
[367622499,1750879842794,-379.44324504,0.0001726,2]
[367622501,1750879842803,-595.07617992,0.0001726,2]
[367622503,1750879842813,-1029.88,0.0001726,2]
[367622505,1750879842823,-460.0,0.0001726,2]
[367622507,1750879842833,-460.0,0.0001726,2]
[367622509,1750879842842,-460.0,0.0001726,2]
[367622511,1750879842851,-460.0,0.0001726,2]
[367622513,1750879842861,-2005.87,0.0001726,2]
[367622515,1750879842871,-159.76,0.0001726,2]
[367622517,1750879842881,-460.0,0.0001726,2]
[367622520,1750879842891,-460.0,0.0001726,2]
[367622522,1750879842901,-159.1692736,0.00017328,2]
[367622524,1750879842911,-3782.04504379,0.00017434,2]
[367622526,1750879842921,-3218.82112114,0.00017452,2]
[367622528,1750879842931,-164.72036983,0.0001751,2]
[367622530,1750879842941,-323.0,0.00017529,2]
[367622532,1750879842951,-459.91,0.00017534,2]
[367622534,1750879842961,-460.0,0.00017534,2]
[367622536,1750879842970,-460.0,0.00017534,2]
[367622538,1750879842980,-460.0,0.00017534,2]
[367622540,1750879842991,-460.0,0.00017534,2]
[367622542,1750879843001,-258.95,0.00017534,2]
[367622544,1750879843013,-460.0,0.00017534,2]
[367622546,1750879843023,-460.0,0.00017534,2]
[367622548,1750879843032,-460.0,0.00017534,2]
[367622550,1750879843042,-570.09,0.00017534,2]
[367622552,1750879843052,-460.0,0.00017534,2]
[367622555,1750879843062,-844.63,0.00017534,2]
[367622557,1750879843073,-460.0,0.00017534,2]
[367622559,1750879843083,-460.0,0.00017534,2]
[367622561,1750879843093,-1854.08,0.00017534,2]
[367622563,1750879843104,-3439.32,0.00017534,2]
[367622565,1750879843114,-460.0,0.00017534,2]
[367622567,1750879843124,-460.0,0.00017534,2]
[367622583,1750879843272,-1368.35,0.00017534,2]
[367622585,1750879843282,-485.01,0.00017534,2]
[367622587,1750879843292,-1889.98,0.00017534,2]
[367622589,1750879843302,-460.0,0.00017534,2]
[367622591,1750879843312,-352.24067637,0.00017534,2]
[367622593,1750879843322,-460.0,0.00017534,2]
[367622595,1750879843331,-764.44,0.00017534,2]
[367622597,1750879843340,-460.0,0.00017534,2]
[367622599,1750879843351,-460.0,0.00017534,2]
[367622601,1750879843360,-817.46,0.00017534,2]
[367622603,1750879843369,-460.0,0.00017534,2]
[367622605,1750879843378,-1687.21,0.00017534,2]
[367622607,1750879843389,-3328.99,0.00017534,2]
[367622609,1750879843398,-521.37,0.00017534,2]
[367622611,1750879843408,-1003.52,0.00017534,2]
[367622613,1750879843418,-460.0,0.00017534,2]
[367622615,1750879843428,-2727.71,0.00017534,2]
[367622617,1750879843438,-441.64,0.00017534,2]
[367622619,1750879843448,-151.0,0.00017534,2]
[367622621,1750879843459,-1525.66,0.00017534,2]
[367622624,1750879843469,-501.38,0.00017534,2]
[367622626,1750879843479,-1919.22,0.00017534,2]
[367622628,1750879843489,-460.0,0.00017534,2]
[367622630,1750879843498,-460.0,0.00017534,2]
[367622633,1750879843507,-460.0,0.00017534,2]
[367622636,1750879843517,-460.0,0.00017534,2]
[367622638,1750879843526,-460.0,0.00017534,2]
[367622640,1750879843536,-845.12,0.00017534,2]
[367622642,1750879843546,-690.86,0.00017534,2]
[367622644,1750879843555,-460.2,0.00017534,2]
[367622646,1750879843564,-460.0,0.00017534,2]
[367622648,1750879843574,-1157.75,0.00017534,2]
[367622650,1750879843583,-460.0,0.00017534,2]
[367622652,1750879843593,-1833.02,0.00017534,2]
[367622654,1750879843602,-560.09,0.00017534,2]
[367622656,1750879843612,-460.0,0.00017534,2]
[367622658,1750879843621,-1998.0,0.00017534,2]
[367622660,1750879843631,-460.0,0.00017534,2]
[367622662,1750879843641,-671.46,0.00017534,2]
[367622664,1750879843654,-151.0,0.00017534,2]
[367622666,1750879843664,-151.0,0.00017534,2]
[367622668,1750879843674,-591.36,0.00017534,2]
[367622670,1750879843683,-460.0,0.00017534,2]
[367622673,1750879843694,-1490.15,0.00017534,2]
[367622675,1750879843704,-460.0,0.00017534,2]
[367622677,1750879843713,-907.24,0.00017534,2]
[367622679,1750879843725,-151.0,0.00017534,2]
[367622681,1750879843735,-1029.88,0.00017534,2]
[367622683,1750879843748,-460.0,0.00017534,2]
[367622685,1750879843758,-460.0,0.00017534,2]
[367622687,1750879843767,-460.0,0.00017534,2]
[367622689,1750879843777,-460.0,0.00017534,2]
[367622691,1750879843788,-2005.87,0.00017534,2]
[367622693,1750879843798,-196.042969,0.00017534,2]
[367622695,1750879843808,-183.29,0.00017534,2]
[367622697,1750879843822,-196.042969,0.00017534,2]
[367622699,1750879843832,-460.0,0.00017534,2]
[367622701,1750879843841,-5000.0,0.00017594,2]
[367622703,1750879843851,-207.4,0.00017594,2]
[367622705,1750879843860,-800.0,0.00017614,2]
[367622707,1750879843870,-506.37154004,0.00017628,2]
[367622709,1750879843879,-500.0,0.00017628,2]
[367622711,1750879843889,-1000.0,0.00017628,2]
[367622713,1750879843900,-1000.0,0.00017635,2]
[367622715,1750879843909,-500.43898569,0.00017652,2]
[367622717,1750879843919,-500.0,0.00017652,2]
[367622719,1750879843929,-500.0,0.00017652,2]
[367622721,1750879843938,-881.28953766,0.00017652,2]
[367622723,1750879843947,-1000.0,0.00017652,2]
[367622725,1750879843956,-1000.0,0.00017652,2]
[367622727,1750879843966,-1000.0,0.00017652,2]
[367622729,1750879843975,-1000.0,0.00017652,2]
[367622731,1750879843984,-1000.0,0.00017655,2]
[367622733,1750879843994,-800.0,0.0001769,2]
[367622735,1750879844003,-500.0,0.00017698,2]
[367622737,1750879844012,-419.0,0.00017702,2]
[367622739,1750879844022,-3218.82112114,0.00017728,2]
[367622741,1750879844032,-151.0,0.00017728,2]
[367622743,1750879844041,-151.0,0.00017728,2]
[367622745,1750879844051,-252.125982,0.00017728,2]
[367622747,1750879844060,-252.125982,0.00017728,2]
[367622749,1750879844069,-174.69466745,0.00017735,2]